bitfinex/quotes_SOLUSD_20220311
["timestamp","ask_amount","ask_price","bid_price","bid_amount"]
[1646984455346,64.04158507,82.281,82.2,6.0]
[1646984456151,18.2385,82.27,82.2,6.0]
[1646984456350,18.2385,82.27,82.2,127.4]
[1646984456551,64.04158507,82.281,82.2,127.4]
[1646984457151,3.04447957,82.28,82.2,6.0]
[1646984458050,27.73037708,82.279,82.2,6.0]
[1646984458254,18.241,82.26,82.2,6.0]
[1646984458850,3.04447957,82.278,82.2,6.0]
[1646984459051,3.04447957,82.278,82.199,23.3022]
[1646984459252,27.73037708,82.277,82.199,23.3022]
[1646984459652,3.04447957,82.276,82.199,23.3022]
[1646984460355,18.2432,82.25,82.199,23.3022]
[1646984465155,18.2408,82.26,82.199,23.3022]
[1646984465557,54.17646525,82.259,82.199,23.3022]
[1646984466557,18.243,82.25,82.199,23.3022]
[1646984475697,24.7127,82.258,82.199,23.3022]
[1646984476100,23.7074,82.283,82.199,23.3022]
[1646984476500,23.7074,82.283,82.2,127.4]
[1646984476700,50.32670986,82.286,82.2,127.4]
[1646984476900,50.32670986,82.286,82.202,121.4]
[1646984477101,50.32670986,82.286,82.203,6.0]
[1646984477900,50.32670986,82.286,82.204,12.74090704]
[1646984478102,50.32670986,82.286,82.205,6.0]
[1646984478701,23.8451,82.285,82.206,12.74090704]
[1646984478899,23.8451,82.285,82.207,6.0]
[1646984479099,18.2365,82.28,82.207,6.0]
[1646984479699,18.2365,82.28,82.203,6.0]
[1646984480500,18.2365,82.28,82.202,6.0]
[1646984480701,18.2365,82.28,82.2,6.0]
[1646984481099,17.2365,82.28,82.2,6.0]
[1646984481306,3.04447957,82.279,82.2,6.0]
[1646984481502,3.04447957,82.279,82.19,18.2389]
[1646984482503,3.04447957,82.279,82.188,27.01142864]
[1646984482802,59.27662346,82.259,82.188,27.01142864]
[1646984483405,59.27662346,82.259,82.191,18.5189]
[1646984485208,59.27662346,82.259,82.192,121.4]
[1646984485612,59.27662346,82.259,82.191,18.5189]
[1646984486612,18.2411,82.26,82.192,121.4]
[1646984486812,18.2411,82.26,82.191,18.5189]
[1646984487809,63.13175711,82.259,82.191,18.5189]
[1646984489411,18.2411,82.26,82.199,23.8022]
[1646984493824,24.2987,82.262,82.199,23.8022]
[1646984494020,18.2454,82.24,82.199,23.8022]
[1646984494423,1.90882441,82.26,82.199,23.8022]
[1646984494819,24.2987,82.262,82.199,23.8022]
[1646984495221,18.2421,82.26,82.199,23.8022]
[1646984499150,18.2421,82.26,82.2,127.4]
[1646984499453,18.2384,82.27,82.2,127.4]
[1646984499649,18.2384,82.27,82.2,6.0]
[1646984502054,18.2384,82.27,82.199,23.8022]
[1646984502257,48.32765952,82.271,82.199,23.8022]
[1646984502450,18.2415,82.26,82.199,23.8022]
[1646984504256,22.7183,82.27,82.199,23.8022]
[1646984504659,3.04447957,82.269,82.199,23.8022]
[1646984505657,18.2428,82.25,82.199,23.8022]
[1646984505860,3.04447957,82.269,82.199,23.8022]
[1646984507761,18.2407,82.26,82.199,23.8022]
[1646984507963,60.8054,82.28,82.199,23.8022]
[1646984507964,31.75087825,82.285,82.2,154.41142864]
[1646984508162,16.61314406,82.299,82.2,154.41142864]
[1646984508362,25.56371041,82.302,82.2,154.41142864]
[1646984508363,1.6728369,82.3,82.202,121.4]
[1646984508564,1.6728369,82.3,82.203,6.0]
[1646984508763,1.6728369,82.301,82.204,121.4]
[1646984508966,18.234,82.29,82.205,6.0]
[1646984509165,1.6728369,82.298,82.205,18.75470838]
[1646984509366,1.6728369,82.297,82.205,18.75470838]
[1646984509669,4.71731647,82.297,82.206,12.75470838]
[1646984509865,3.04447957,82.296,82.207,6.0]
[1646984510266,18.2369,82.28,82.207,6.0]
[1646984510467,3.04447957,82.296,82.208,12.75470838]
[1646984510666,3.04447957,82.279,82.208,12.75470838]
[1646984510866,3.04447957,82.279,82.199,0.5]
[1646984511065,18.2409,82.26,82.199,0.5]
[1646984511268,1.6728369,82.289,82.2,15.79781124]
[1646984511466,3.04447957,82.29,82.201,127.4]
[1646984511667,3.04447957,82.29,82.201,143.19781124]
[1646984511866,3.04447957,82.29,82.201,140.15333167]
[1646984512067,3.04447957,82.29,82.203,121.4]
[1646984512270,21.27857957,82.29,82.204,29.4447]
[1646984512470,21.27857957,82.29,82.204,45.24251124]
[1646984512869,3.04447957,82.29,82.205,15.79781124]
[1646984513069,3.04447957,82.29,82.206,6.0]
[1646984513270,3.04447957,82.29,82.206,18.75333167]
[1646984513469,18.2364,82.28,82.206,18.75333167]
[1646984513670,18.2364,82.28,82.206,6.0]
[1646984513869,18.2364,82.28,82.205,6.0]
[1646984514373,18.2364,82.28,82.205,9.04447957]
[1646984514569,18.2364,82.28,82.206,12.74597287]
[1646984514771,18.2364,82.28,82.207,6.0]
[1646984515469,18.2364,82.28,82.208,12.74597287]
[1646984515669,18.2364,82.28,82.209,6.0]
[1646984516468,18.2364,82.28,82.205,6.0]
[1646984517073,18.2364,82.28,82.206,12.7437547]
[1646984517270,18.2364,82.28,82.207,6.0]
[1646984517870,18.2364,82.28,82.208,12.7437547]
[1646984518070,18.2364,82.28,82.209,6.0]
[1646984518269,18.2364,82.28,82.208,12.7437547]
[1646984518572,18.2364,82.28,82.205,12.7437547]
[1646984518969,18.2364,82.28,82.206,6.0]
[1646984519468,18.2364,82.28,82.207,12.7437547]
[1646984519669,18.2364,82.28,82.208,6.0]
[1646984520471,18.2364,82.28,82.205,6.0]
[1646984520672,18.2384,82.27,82.205,6.0]
[1646984521076,18.2384,82.27,82.206,12.74078563]
[1646984521275,18.2384,82.27,82.207,6.0]
[1646984521475,3.04447957,82.29,82.207,6.0]
[1646984521876,46.31219168,82.289,82.208,12.74078563]
[1646984522075,46.31219168,82.289,82.209,6.0]
[1646984522476,3.04447957,82.29,82.205,6.0]
[1646984522679,22.9227,82.3,82.205,6.0]
[1646984522877,22.9227,82.3,82.205,130.44447957]
[1646984523078,22.9227,82.3,82.207,121.4]
[1646984523278,22.9227,82.3,82.208,6.0]
[1646984523479,22.9227,82.3,82.209,121.4]
[1646984523678,22.9227,82.3,82.21,6.0]
[1646984524078,18.2342,82.29,82.211,121.4]
[1646984524278,22.9227,82.3,82.212,6.0]
[1646984524478,22.9227,82.3,82.213,121.4]
[1646984524681,22.9227,82.3,82.214,6.0]
[1646984525089,41.1564,82.3,82.214,6.0]
[1646984525280,41.1564,82.3,82.216,121.4]
[1646984525478,22.9227,82.3,82.217,6.0]
[1646984526580,18.2319,82.3,82.217,6.0]
[1646984526779,15.28697383,82.321,82.218,3.04447957]
[1646984526979,1.6728369,82.323,82.22,121.4]
[1646984527279,14.54,82.33,82.221,6.0]
[1646984527479,14.54,82.33,82.222,121.4]
[1646984527680,18.2276,82.32,82.223,6.0]
[1646984527881,18.2276,82.32,82.223,9.04447957]
[1646984528079,25.56371041,82.319,82.224,121.4]
[1646984528280,25.56371041,82.319,82.225,6.0]
[1646984528481,25.56371041,82.319,82.226,121.4]
[1646984528683,25.56371041,82.319,82.227,6.0]
[1646984528882,18.2301,82.31,82.229,121.4]
[1646984529082,18.2301,82.31,82.23,6.0]
[1646984529284,43.79381041,82.31,82.23,6.0]
[1646984529482,43.79381041,82.31,82.231,121.4]
[1646984529682,43.79381041,82.31,82.232,6.0]
[1646984530281,18.2301,82.31,82.232,6.0]
[1646984530685,18.232,82.3,82.231,6.0]
[1646984530884,18.232,82.3,82.229,6.0]
[1646984531983,18.232,82.3,82.228,46.937]
[1646984534088,18.232,82.3,82.229,127.4]
[1646984534286,18.2297,82.31,82.229,127.4]
[1646984534687,18.2297,82.31,82.229,6.0]
[1646984535687,18.2321,82.3,82.229,6.0]
[1646984535887,18.2321,82.3,82.228,46.937]
[1646984536686,18.2321,82.3,82.229,6.0]
[1646984537188,24.8984,82.299,82.229,6.0]
[1646984540917,24.8984,82.299,82.228,46.937]
[1646984541418,24.8984,82.299,82.229,6.0]
[1646984543219,18.234,82.29,82.229,6.0]
[1646984546123,24.8984,82.299,82.229,127.4]
[1646984551625,84.23320683,82.31,82.229,127.4]
[1646984551822,18.2297,82.31,82.229,127.4]
[1646984552424,18.2321,82.3,82.229,127.4]
[1646984553526,64.21620704,82.304,82.229,127.4]
[1646984555331,18.2295,82.31,82.229,127.4]
[1646984563841,22.7406,82.317,82.231,121.4]
[1646984564042,22.7406,82.317,82.232,6.0]
[1646984564240,22.7406,82.317,82.233,121.4]
[1646984564441,22.7406,82.317,82.234,6.0]
[1646984564641,22.7406,82.317,82.235,121.4]
[1646984564870,22.7406,82.317,82.236,6.0]
[1646984565043,22.7406,82.317,82.237,121.4]
[1646984565247,22.7406,82.317,82.239,121.4]
[1646984565443,22.7406,82.317,82.24,6.0]
[1646984566245,22.7406,82.317,82.241,124.44447957]
[1646984566443,22.7406,82.317,82.242,6.0]
[1646984566643,22.7406,82.317,82.242,161.25910155]
[1646984566843,22.7406,82.317,82.243,3.04447957]
[1646984567043,22.7406,82.317,82.244,6.0]
[1646984567444,22.7406,82.317,82.245,30.81462198]
[1646984567644,21.7406,82.317,82.246,6.0]
[1646984568044,3.04447957,82.339,82.246,127.4]
[1646984568254,1.6728369,82.347,82.248,121.4]
[1646984568448,3.04447957,82.349,82.25,14.54]
[1646984568648,3.04447957,82.349,82.251,127.4]
[1646984568852,41.6955,82.35,82.251,170.91489865]
[1646984569145,23.6759,82.349,82.253,121.4]
[1646984569349,23.6759,82.349,82.254,6.0]
[1646984569544,23.6759,82.349,82.255,121.4]
[1646984569744,18.2229,82.34,82.256,6.0]
[1646984569948,23.6759,82.349,82.256,6.0]
[1646984570146,23.6759,82.349,82.258,121.4]
[1646984570344,23.6759,82.349,82.259,6.0]
[1646984570746,23.6759,82.349,82.261,121.4]
[1646984570948,23.6759,82.349,82.262,6.0]
[1646984571345,23.6759,82.349,82.264,121.4]
[1646984571549,23.6759,82.349,82.265,6.0]
[1646984571947,23.6759,82.349,82.266,121.4]
[1646984572149,23.6759,82.349,82.267,6.0]
[1646984572777,18.2232,82.34,82.267,6.0]
[1646984573274,23.6759,82.349,82.265,6.0]
[1646984574883,18.2208,82.35,82.266,121.4]
[1646984575078,3.35086071,82.385,82.266,121.4]
[1646984575079,1.6728369,82.374,82.282,5.03325349]
[1646984575279,18.0109,82.42,82.286,72.86]
[1646984575478,18.0109,82.42,82.301,121.4]
[1646984575680,18.0109,82.42,82.311,121.4]
[1646984575879,48.56628632,82.44,82.33,72.86]
[1646984576082,1.6728369,82.462,82.346,72.86]
[1646984576280,1.6728369,82.474,82.35,4.9133172]
[1646984576481,1.6728369,82.479,82.352,194.26]
[1646984576781,1.6728369,82.479,82.361,194.26]
[1646984576984,1.6728369,82.48,82.363,194.26]
[1646984577179,58.46271081,82.479,82.364,6.0]
[1646984577380,58.46271081,82.479,82.367,194.26]
[1646984577582,58.46271081,82.479,82.371,121.4]
[1646984577783,58.46271081,82.479,82.381,121.4]
[1646984577981,58.46271081,82.479,82.382,212.8631]
[1646984578182,58.46271081,82.479,82.382,154.88757957]
[1646984578380,121.4,82.478,82.382,68.16031468]
[1646984578584,121.4,82.478,82.382,30.4431]
[1646984578780,18.208,82.41,82.353,31.08515109]
[1646984578980,48.86929652,82.409,82.362,23.5875]
[1646984579582,14.54,82.44,82.342,121.4]
[1646984579783,18.2054,82.42,82.35,18.2054]
[1646984579984,60.6872,82.44,82.35,18.2054]
[1646984580584,52.18255769,82.439,82.35,18.2054]
[1646984581287,18.2048,82.43,82.35,18.2054]
[1646984581485,18.2048,82.43,82.351,6.0]
[1646984581785,52.18255769,82.439,82.351,6.0]
[1646984581984,121.4,82.438,82.339,6.0]
[1646984582186,60.6951,82.43,82.339,6.0]
[1646984582484,52.18255769,82.439,82.339,33.53181776]
[1646984582687,52.18255769,82.439,82.34,139.6081]
[1646984582886,52.18255769,82.439,82.341,6.0]
[1646984583085,52.18255769,82.439,82.342,121.4]
[1646984583287,52.18255769,82.439,82.343,6.0]
[1646984583689,52.18255769,82.439,82.343,33.53181776]
[1646984583888,18.205,82.43,82.35,18.2035]
[1646984584087,18.205,82.43,82.351,6.0]
[1646984584289,52.18255769,82.439,82.351,6.0]
[1646984584588,52.18255769,82.439,82.352,22.9895]
[1646984584787,52.18255769,82.439,82.353,6.0]
[1646984584998,75.22,82.45,82.36,18.2035]
[1646984585187,14.54,82.46,82.361,127.4]
[1646984585389,14.54,82.47,82.361,33.53181776]
[1646984585588,14.54,82.47,82.362,22.9895]
[1646984585788,14.54,82.47,82.363,6.0]
[1646984585987,121.4,82.468,82.363,6.0]
[1646984586290,18.203,82.44,82.37,18.2001]
[1646984586488,65.07529128,82.439,82.371,6.0]
[1646984587287,65.07529128,82.439,82.372,22.9895]
[1646984587487,18.2031,82.43,82.372,22.9895]
[1646984588490,18.2031,82.43,82.373,6.0]
[1646984588690,18.2031,82.43,82.372,22.9895]
[1646984590994,65.07529128,82.439,82.372,22.9895]
[1646984592394,60.6661,82.47,82.372,144.3895]
[1646984592598,75.2061,82.47,82.373,6.0]
[1646984593397,47.74847201,82.469,82.373,6.0]
[1646984593595,18.2008,82.44,82.373,6.0]
[1646984593796,61.27375809,82.439,82.373,6.0]
[1646984594798,18.2033,82.43,82.373,6.0]
[1646984594999,61.27375809,82.439,82.372,22.9895]
[1646984595405,61.27375809,82.439,82.35,18.2046]
[1646984595598,61.27375809,82.439,82.351,6.0]
[1646984595798,67.60947936,82.439,82.351,6.0]
[1646984596000,18.2074,82.42,82.351,6.0]
[1646984596204,84.16825809,82.439,82.352,22.9501]
[1646984596502,84.16825809,82.439,82.353,6.0]
[1646984597102,18.2079,82.41,82.353,6.0]
[1646984597299,64.19962194,82.409,82.353,6.0]
[1646984597700,64.19962194,82.409,82.352,22.9501]
[1646984598302,18.2079,82.41,82.352,22.9501]
[1646984599632,18.2052,82.43,82.352,22.9501]
[1646984599834,22.8945,82.439,82.353,6.0]
[1646984600033,22.8945,82.439,82.354,121.4]
[1646984600234,22.8945,82.439,82.355,6.0]
[1646984600432,22.8945,82.439,82.356,121.4]
[1646984600635,22.8945,82.439,82.357,6.0]
[1646984600834,22.8945,82.439,82.358,121.4]
[1646984601038,22.8945,82.439,82.359,6.0]
[1646984601234,22.8945,82.439,82.36,139.6036]
[1646984601436,22.8945,82.439,82.361,6.0]
[1646984601637,18.1987,82.45,82.361,6.0]
[1646984601841,18.1987,82.45,82.362,149.05284778]
[1646984602038,18.1987,82.45,82.363,6.0]
[1646984602239,65.84547979,82.449,82.363,6.0]
[1646984602442,65.84547979,82.449,82.37,18.1992]
[1646984602639,65.84547979,82.449,82.371,6.0]
[1646984603843,65.84547979,82.449,82.372,23.7553]
[1646984604040,65.84547979,82.449,82.373,6.0]
[1646984604344,18.1987,82.45,82.373,6.0]
[1646984604540,18.1965,82.46,82.373,6.0]
[1646984604742,18.1965,82.46,82.374,121.4]
[1646984604940,18.1965,82.46,82.375,6.0]
[1646984605342,18.1965,82.46,82.376,23.0727]
[1646984605543,64.83455584,82.46,82.377,6.0]
[1646984605942,18.1988,82.45,82.377,6.0]
[1646984608748,1.6728369,82.464,82.38,18.1876]
[1646984608947,1.6728369,82.486,82.381,6.0]
[1646984609145,1.6728369,82.488,82.382,72.86]
[1646984609344,23.5509,82.501,82.381,9.29447957]
[1646984609345,1.6728369,82.492,82.384,72.86]
[1646984609550,1.6728369,82.492,82.386,72.86]
[1646984609748,1.6728369,82.507,82.389,61.02]
[1646984609951,1.6728369,82.52,82.42,18.1771]
[1646984610149,58.84454425,82.524,82.421,194.51]
[1646984610351,1.6728369,82.533,82.43,14.54]
[1646984610548,1.6728369,82.536,82.431,127.4]
[1646984610749,1.6728369,82.54,82.432,0.25]
[1646984610947,2.28139257,82.562,82.432,0.25]
[1646984611150,0.60855567,82.562,82.432,47.80557588]
[1646984611350,62.75247853,82.561,82.433,209.49257225]
[1646984611547,1.6728369,82.56,82.435,121.4]
[1646984611748,1.6728369,82.56,82.45,135.94]
[1646984612051,62.75247853,82.561,82.451,6.0]
[1646984612347,62.75247853,82.561,82.44,14.54]
[1646984612348,1.6728369,82.549,82.44,121.4]
[1646984612548,47.56561443,82.528,82.41,14.54]
[1646984612750,1.6728369,82.519,82.381,52.80448078]
[1646984612951,1.6728369,82.511,82.381,47.7779]
[1646984613149,14.54,82.5,82.381,47.7779]
[1646984613348,60.6779,82.47,82.381,47.7779]
[1646984613551,56.47750775,82.469,82.381,47.7779]
[1646984613949,59.52198732,82.469,82.381,47.7779]
[1646984614147,3.04447957,82.468,82.381,47.7779]
[1646984614949,18.2041,82.45,82.381,47.7779]
[1646984615349,3.04447957,82.449,82.33,14.54]
[1646984615551,3.04447957,82.449,82.343,6.0]
[1646984616750,3.04447957,82.449,82.344,22.8017]
[1646984616951,3.04447957,82.449,82.345,6.0]
[1646984617951,53.99740721,82.439,82.345,6.0]
[1646984619755,18.2066,82.43,82.345,6.0]
[1646984620354,53.99740721,82.439,82.345,6.0]
[1646984620555,53.99740721,82.439,82.344,22.8017]
[1646984620755,124.44447957,82.438,82.344,22.8017]
[1646984620957,124.44447957,82.438,82.342,22.6989]
[1646984621156,3.04447957,82.437,82.342,22.6989]
[1646984622155,18.2134,82.4,82.342,22.6989]
[1646984622356,64.80128915,82.399,82.331,24.673]
[1646984623657,60.6948,82.44,82.331,24.673]
[1646984623857,14.54,82.43,82.331,24.673]
[1646984624355,3.04447957,82.429,82.331,24.673]
[1646984624559,121.4,82.427,82.331,24.673]
[1646984625160,18.213,82.4,82.331,24.673]
[1646984625357,51.50696976,82.399,82.331,24.673]
[1646984627263,18.2153,82.39,82.331,24.673]
[1646984629469,51.50696976,82.399,82.331,24.673]
[1646984631475,50.50696976,82.399,82.331,24.673]
[1646984632687,18.2137,82.39,82.331,24.673]
[1646984633490,50.50696976,82.399,82.331,24.673]
[1646984633693,18.2154,82.38,82.331,24.673]
[1646984633890,48.77502073,82.379,82.309,23.992]
[1646984634190,48.77502073,82.379,82.31,6.0]
[1646984634789,48.77502073,82.379,82.309,23.992]
[1646984636191,18.2198,82.36,82.309,23.992]
[1646984636392,50.69793727,82.361,82.309,23.992]
[1646984639599,50.69793727,82.361,82.293,45.8578]
[1646984639999,60.7554,82.35,82.293,45.8578]
[1646984640402,75.2954,82.35,82.262,3.04447957]
[1646984640799,75.2954,82.35,82.264,49.0413]
[1646984641099,18.2261,82.33,82.265,6.0]
[1646984641297,59.24126487,82.329,82.265,6.0]
[1646984644705,18.2285,82.32,82.265,6.0]
[1646984644904,18.2285,82.32,82.264,49.0413]
[1646984647917,121.4,82.328,82.264,49.0413]
[1646984648118,121.4,82.328,82.237,47.33450082]
[1646984648316,3.04447957,82.319,82.219,47.9642]
[1646984648515,14.54,82.31,82.219,47.9642]
[1646984648715,46.61705386,82.309,82.219,47.9642]
[1646984649317,46.61705386,82.309,82.22,6.0]
[1646984649717,124.44447957,82.308,82.22,6.0]
[1646984649925,3.04447957,82.308,82.22,6.0]
[1646984650122,3.04447957,82.307,82.22,6.0]
[1646984650521,46.61705386,82.309,82.22,127.4]
[1646984650725,46.61705386,82.309,82.22,6.0]
[1646984650923,121.4,82.308,82.22,6.0]
[1646984651341,3.04447957,82.307,82.22,6.0]
[1646984652942,3.04447957,82.323,82.22,31.96739334]
[1646984653143,3.04447957,82.323,82.222,121.4]
[1646984653444,121.4,82.329,82.222,121.4]
[1646984653644,61.8025,82.33,82.223,25.19310608]
[1646984653844,49.50949518,82.329,82.223,25.19310608]
[1646984654043,49.50949518,82.329,82.224,3.04447957]
[1646984654245,3.04447957,82.328,82.224,3.04447957]
[1646984655044,18.2321,82.31,82.224,3.04447957]
[1646984655249,56.05677702,82.309,82.224,3.04447957]
[1646984656150,3.04447957,82.308,82.22,18.2276]
[1646984656347,18.2324,82.3,82.221,6.0]
[1646984656546,18.2324,82.3,82.221,9.04447957]
[1646984656746,18.2324,82.3,82.222,3.04447957]
[1646984657349,3.04447957,82.325,82.223,6.0]
[1646984657548,48.8436,82.369,82.223,149.54862651]
[1646984657747,48.8436,82.369,82.225,121.4]
[1646984657748,3.04447957,82.346,82.225,121.4]
[1646984657948,3.04447957,82.346,82.227,121.4]
[1646984658233,50.85208518,82.345,82.241,121.4]
[1646984658348,18.2259,82.33,82.242,6.0]
[1646984658549,49.4756557,82.329,82.242,6.0]
[1646984658852,49.4756557,82.329,82.243,23.1888]
[1646984659048,49.4756557,82.329,82.244,6.0]
[1646984659653,121.4,82.328,82.243,23.1888]
[1646984659851,28.39380864,82.328,82.243,23.1888]
[1646984660051,31.43828821,82.327,82.243,23.1888]
[1646984660453,31.43828821,82.326,82.243,23.1888]
[1646984660953,60.7763,82.32,82.243,23.1888]
[1646984662153,18.232,82.3,82.243,23.1888]
[1646984662419,61.96253969,82.299,82.243,23.1888]
[1646984662959,23.6791,82.324,82.243,23.1888]
[1646984663355,26.72357957,82.324,82.243,23.1888]
[1646984663966,178.04515946,82.323,82.243,23.1888]
[1646984664263,56.64515946,82.323,82.243,23.1888]
[1646984664664,3.04447957,82.322,82.243,23.1888]
[1646984664863,124.44447957,82.322,82.243,23.1888]
[1646984665064,3.04447957,82.322,82.243,23.1888]
[1646984665264,18.232,82.3,82.243,23.1888]
[1646984665464,63.9705101,82.299,82.243,23.1888]
[1646984672294,18.232,82.3,82.243,23.1888]
[1646984672494,18.2296,82.32,82.243,23.1888]
[1646984672695,1.6728369,82.36,82.243,23.1888]
[1646984672897,6.33180704,82.339,82.244,3.04447957]
[1646984673294,6.33180704,82.339,82.245,6.0]
[1646984673494,65.56487843,82.309,82.245,6.0]
[1646984674595,65.56487843,82.309,82.244,6.0]
[1646984674795,65.56487843,82.309,82.243,23.1888]
[1646984677099,3.04447957,82.308,82.243,23.1888]
[1646984677698,124.44447957,82.308,82.243,23.1888]
[1646984677899,3.04447957,82.308,82.243,23.1888]
[1646984678199,62.37288303,82.291,82.243,23.1888]
[1646984678799,17.58447957,82.32,82.243,23.1888]
[1646984679003,18.2275,82.32,82.243,23.1888]
[1646984679699,58.51591925,82.319,82.243,23.1888]
[1646984682303,18.2275,82.32,82.243,23.1888]
[1646984682512,21.26977957,82.33,82.244,6.0]
[1646984682703,3.04447957,82.33,82.244,6.0]
[1646984682904,3.24447957,82.348,82.245,13.50685905]
[1646984683109,3.24447957,82.348,82.251,121.4]
[1646984683305,0.2,82.348,82.252,6.0]
[1646984683505,0.2,82.348,82.254,121.4]
[1646984683704,0.2,82.348,82.255,6.0]
[1646984683906,0.2,82.348,82.256,121.4]
[1646984684106,0.2,82.348,82.261,121.4]
[1646984684307,0.2,82.348,82.262,6.0]
[1646984684507,0.2,82.348,82.263,121.65]
[1646984684808,0.2,82.348,82.267,121.4]
[1646984685014,0.2,82.348,82.281,121.4]
[1646984685207,0.2,82.348,82.282,6.0]
[1646984685408,0.2,82.348,82.283,121.4]
[1646984685710,0.2,82.348,82.284,6.0]
[1646984685912,0.2,82.348,82.285,22.8455]
[1646984686110,0.2,82.348,82.286,127.4]
[1646984686315,0.2,82.348,82.3,18.2051]
[1646984686513,0.2,82.348,82.301,127.4]
[1646984686713,0.2,82.348,82.301,140.88965619]
[1646984686911,0.2,82.348,82.302,46.1473]
[1646984687112,0.2,82.348,82.303,6.0]
[1646984689017,0.2,82.348,82.302,46.1473]
[1646984693928,0.2,82.348,82.303,6.0]
[1646984694128,0.2,82.348,82.303,32.97176359]
[1646984694330,0.2,82.348,82.304,121.4]
[1646984694530,0.2,82.348,82.305,6.0]
[1646984694728,0.2,82.348,82.305,32.97176359]
[1646984694929,0.2,82.348,82.306,26.97176359]
[1646984696462,0.2,82.348,82.307,5.8]
[1646984696663,0.2,82.348,82.306,26.97176359]
[1646984696863,0.2,82.348,82.302,46.1473]
[1646984706779,18.2233,82.34,82.27,45.19466359]
[1646984706980,0.2,82.348,82.271,22.5394]
[1646984709080,18.2253,82.33,82.271,22.5394]
[1646984709380,61.32486522,82.329,82.271,22.5394]
[1646984715488,18.2278,82.32,82.271,22.5394]
[1646984719790,121.4,82.319,82.25,25.64056359]
[1646984719994,47.35037039,82.309,82.25,25.64056359]
[1646984721290,47.35037039,82.309,82.251,24.504]
[1646984722693,14.54,82.34,82.251,50.14456359]
[1646984722889,7.0,82.391,82.251,50.14456359]
[1646984722890,60.7485,82.36,82.252,38.14363167]
[1646984723092,14.54,82.35,82.252,53.56006461]
[1646984723291,14.54,82.35,82.253,13.54152383]
[1646984723494,6.33192765,82.349,82.253,13.54152383]
[1646984723696,179.72333263,82.338,82.253,13.54152383]
[1646984724594,179.72333263,82.338,82.253,39.18208742]
[1646984724994,179.72333263,82.338,82.254,13.54152383]
[1646984725192,18.2275,82.32,82.254,13.54152383]
[1646984725392,50.49522146,82.319,82.254,13.54152383]
[1646984727397,50.49522146,82.319,82.254,39.18208742]
[1646984727797,50.49522146,82.319,82.255,13.54152383]
[1646984727997,18.225,82.34,82.255,13.54152383]
[1646984728300,18.225,82.34,82.256,25.64056359]
[1646984728997,18.2254,82.33,82.257,13.54152383]
[1646984730002,18.2275,82.32,82.257,13.54152383]
[1646984730203,64.94378065,82.319,82.257,13.54152383]
[1646984731406,64.94378065,82.319,82.256,25.64056359]
[1646984731806,64.94378065,82.319,82.257,13.5560542]
[1646984732207,18.2299,82.31,82.251,24.504]
[1646984732608,18.2299,82.31,82.252,13.56227097]
[1646984734007,64.94378065,82.319,82.252,13.56227097]
[1646984738235,64.94378065,82.319,82.253,25.64056359]
[1646984738434,64.94378065,82.319,82.254,6.0]
[1646984738838,64.94378065,82.319,82.255,13.56227097]
[1646984739036,64.94378065,82.319,82.256,6.0]
[1646984739637,64.94378065,82.319,82.257,13.56227097]
[1646984740440,64.94378065,82.319,82.254,13.56227097]
[1646984740640,64.94378065,82.319,82.255,6.0]
[1646984740840,64.94378065,82.319,82.254,13.56227097]
[1646984741349,121.4,82.318,82.254,13.56227097]